[Event "*** Titled Tuesday Blitz"]
[Site "Chess.com"]
[Date "2020.05.12"]
[Round "3"]
[White "LazovT"]
[Black "pirulillo"]
[Result "1-0"]
[WhiteElo "2686"]
[BlackElo "2198"]
[TimeControl "180+1"]
[EndTime "10:28:02 PDT"]
[Termination "LazovT won by resignation"]

1. e4 {[%clk 0:02:48.9]} 1... c5 {[%clk 0:02:59.5]} 2. Nc3 {[%clk 0:02:46.1]}
2... Nc6 {[%clk 0:02:56.6]} 3. Bb5 {[%clk 0:02:45.5]} 3... Nd4 {[%clk
0:02:50.8]} 4. Nf3 {[%clk 0:02:45.7]} 4... Nxb5 {[%clk 0:02:47.6]} 5. Nxb5
{[%clk 0:02:46.6]} 5... d6 {[%clk 0:02:41.6]} 6. d4 {[%clk 0:02:46.2]} 6... a6
{[%clk 0:02:39.8]} 7. Nc3 {[%clk 0:02:42.8]} 7... cxd4 {[%clk 0:02:38]} 8. Qxd4
{[%clk 0:02:43.7]} 8... Nf6 {[%clk 0:02:36.5]} 9. Bg5 {[%clk 0:02:43.2]} 9... e5
{[%clk 0:02:18.2]} 10. Qb4 {[%clk 0:02:42.5]} 10... d5 {[%clk 0:01:58.4]} 11.
Qb3 {[%clk 0:02:42.3]} 11... d4 {[%clk 0:01:52.7]} 12. Bxf6 {[%clk 0:02:41.8]}
12... gxf6 {[%clk 0:01:50.4]} 13. O-O-O {[%clk 0:02:41.7]} 13... Bg7 {[%clk
0:01:45]} 14. Kb1 {[%clk 0:02:40.9]} 14... O-O {[%clk 0:01:44.4]} 15. Nd5 {[%clk
0:02:38.8]} 15... Be6 {[%clk 0:01:42.9]} 16. Nh4 {[%clk 0:02:37.1]} 16... b5
{[%clk 0:01:40]} 17. Nf5 {[%clk 0:02:35.6]} 17... Bxf5 {[%clk 0:01:35.6]} 18.
exf5 {[%clk 0:02:36.5]} 18... Rc8 {[%clk 0:01:32.5]} 19. c3 {[%clk 0:02:35.3]}
19... Rc5 {[%clk 0:01:20.8]} 20. Ne3 {[%clk 0:02:21.2]} 20... d3 {[%clk
0:00:51.8]} 21. f3 {[%clk 0:02:16.8]} 21... Bh6 {[%clk 0:00:50.5]} 22. Ng4
{[%clk 0:02:16]} 22... Bg5 {[%clk 0:00:48.4]} 23. h4 {[%clk 0:02:15.6]} 23...
Bf4 {[%clk 0:00:48.3]} 24. Rhg1 {[%clk 0:02:13.7]} 24... h5 {[%clk 0:00:47.8]}
25. g3 {[%clk 0:02:14]} 25... hxg4 {[%clk 0:00:33.1]} 26. gxf4 {[%clk
0:02:14.9]} 26... g3 {[%clk 0:00:21.2]} 27. Rxg3+ {[%clk 0:02:14.7]} 27... Kh7
{[%clk 0:00:21.3]} 28. Rg4 {[%clk 0:01:36.4]} 28... Rc4 {[%clk 0:00:21]} 29.
fxe5 {[%clk 0:01:30.8]} 29... Rg8 {[%clk 0:00:20.9]} 30. Rxc4 {[%clk 0:01:29.8]}
30... bxc4 {[%clk 0:00:20.2]} 31. Qxc4 {[%clk 0:01:30.7]} 31... fxe5 {[%clk
0:00:20.2]} 32. Qe4 {[%clk 0:01:28.8]} 32... f6 {[%clk 0:00:19.9]} 33. Rxd3
{[%clk 0:01:25.9]} 33... Qb6 {[%clk 0:00:19.7]} 34. Rd7+ {[%clk 0:01:21.4]}
34... Kh8 {[%clk 0:00:20]} 35. Qe2 {[%clk 0:01:13.8]} 35... Rg1+ {[%clk
0:00:18.8]} 36. Rd1 {[%clk 0:01:12.6]} 36... Rxd1+ {[%clk 0:00:14.3]} 37. Qxd1
{[%clk 0:01:13.5]} 37... Kh7 {[%clk 0:00:14.1]} 38. a4 {[%clk 0:01:10.7]} 38...
Kh6 {[%clk 0:00:14.3]} 39. b4 {[%clk 0:01:09.6]} 39... a5 {[%clk 0:00:13.8]} 40.
Kb2 {[%clk 0:01:09.3]} 40... axb4 {[%clk 0:00:13.8]} 41. Qd2+ {[%clk 0:01:09.9]}
41... Kh5 {[%clk 0:00:13.7]} 42. cxb4 {[%clk 0:01:10.8]} 42... Kxh4 {[%clk
0:00:12.9]} 43. Kb3 {[%clk 0:01:09.8]} 43... Kg3 {[%clk 0:00:12.7]} 44. a5
{[%clk 0:01:08.5]} 44... Qa6 {[%clk 0:00:08.9]} 45. Qc3 {[%clk 0:01:07.3]} 45...
Kf4 {[%clk 0:00:08.5]} 46. Qc4+ {[%clk 0:01:05.5]} 46... Qxc4+ {[%clk 0:00:09]}
47. Kxc4 {[%clk 0:01:06.4]} 47... Kxf3 {[%clk 0:00:09.5]} 48. a6 {[%clk
0:01:07.1]} 48... e4 {[%clk 0:00:10.1]} 49. a7 {[%clk 0:01:08]} 49... e3 {[%clk
0:00:10.8]} 50. a8=Q+ {[%clk 0:01:08.9]} 50... Kf2 {[%clk 0:00:11.3]} 51. b5
{[%clk 0:01:09]} 51... e2 {[%clk 0:00:11.6]} 52. Qe4 {[%clk 0:01:08.5]} 52...
e1=Q {[%clk 0:00:11.3]} 53. Qxe1+ {[%clk 0:01:08.8]} 53... Kxe1 {[%clk
0:00:12.2]} 54. b6 {[%clk 0:01:09.7]} 54... Kf2 {[%clk 0:00:12.7]} 55. b7 {[%clk
0:01:10.6]} 55... Kg3 {[%clk 0:00:13.6]} 56. b8=Q+ {[%clk 0:01:11.5]} 56... Kg4
{[%clk 0:00:13.8]} 57. Qc8 {[%clk 0:01:10.9]} 1-0

[Event "*** Titled Tuesday Blitz"]
[Site "Chess.com"]
[Date "2020.05.12"]
[Round "3"]
[White "leoduarte"]
[Black "FLamps8"]
[Result "0-1"]
[WhiteElo "2371"]
[BlackElo "2567"]
[TimeControl "180+1"]
[EndTime "10:28:02 PDT"]
[Termination "FLamps8 won on time"]

1. e4 {[%clk 0:03:00.9]} 1... c5 {[%clk 0:02:41.5]} 2. Nf3 {[%clk 0:02:59.4]}
2... e6 {[%clk 0:02:41.8]} 3. d4 {[%clk 0:02:58.8]} 3... cxd4 {[%clk 0:02:42.7]}
4. Nxd4 {[%clk 0:02:59.1]} 4... Nf6 {[%clk 0:02:42.6]} 5. Nc3 {[%clk 0:02:56.9]}
5... d6 {[%clk 0:02:40]} 6. Be2 {[%clk 0:02:54]} 6... a6 {[%clk 0:02:40.1]} 7.
O-O {[%clk 0:02:53.8]} 7... Be7 {[%clk 0:02:39]} 8. f4 {[%clk 0:02:50.3]} 8...
O-O {[%clk 0:02:34.9]} 9. Be3 {[%clk 0:02:41.9]} 9... b6 {[%clk 0:02:33.5]} 10.
Bf3 {[%clk 0:02:35]} 10... Bb7 {[%clk 0:02:29.9]} 11. e5 {[%clk 0:02:32.6]}
11... dxe5 {[%clk 0:02:15.2]} 12. fxe5 {[%clk 0:02:20.4]} 12... Bxf3 {[%clk
0:02:14.7]} 13. Qxf3 {[%clk 0:02:17.8]} 13... Nd5 {[%clk 0:02:15]} 14. Nxd5
{[%clk 0:02:14.8]} 14... Qxd5 {[%clk 0:02:15.9]} 15. Qxd5 {[%clk 0:01:25.2]}
15... exd5 {[%clk 0:02:16.8]} 16. Nf5 {[%clk 0:01:24.8]} 16... Bd8 {[%clk
0:02:10.9]} 17. Rad1 {[%clk 0:01:18.8]} 17... Nc6 {[%clk 0:02:09]} 18. Rxd5
{[%clk 0:01:10.8]} 18... Bc7 {[%clk 0:02:09]} 19. Bf4 {[%clk 0:01:06.8]} 19...
Rad8 {[%clk 0:02:03.5]} 20. Rfd1 {[%clk 0:01:04.8]} 20... g6 {[%clk 0:01:59.6]}
21. Nd6 {[%clk 0:00:51.2]} 21... Rd7 {[%clk 0:01:29]} 22. a3 {[%clk 0:00:39.4]}
22... f6 {[%clk 0:00:55.4]} 23. e6 {[%clk 0:00:26.4]} 23... Re7 {[%clk
0:00:54.1]} 24. Bh6 {[%clk 0:00:25]} 24... Ra8 {[%clk 0:00:35.4]} 25. Re1 {[%clk
0:00:16.9]} 25... Ne5 {[%clk 0:00:30.9]} 26. Ne4 {[%clk 0:00:11.3]} 26... Rxe6
{[%clk 0:00:21.6]} 27. Kf1 {[%clk 0:00:04.6]} 27... Ng4 {[%clk 0:00:19.5]} 28.
Bd2 {[%clk 0:00:02.5]} 28... Rae8 {[%clk 0:00:18.1]} 0-1

[Event "*** Titled Tuesday Blitz"]
[Site "Chess.com"]
[Date "2020.05.12"]
[Round "3"]
[White "kingnb"]
[Black "HarryCun"]
[Result "1-0"]
[WhiteElo "2487"]
[BlackElo "2186"]
[TimeControl "180+1"]
[EndTime "10:28:03 PDT"]
[Termination "kingnb won by resignation"]

1. e4 {[%clk 0:03:00.4]} 1... c6 {[%clk 0:03:00.9]} 2. Ne2 {[%clk 0:02:59.2]}
2... d5 {[%clk 0:02:53.4]} 3. e5 {[%clk 0:02:58.8]} 3... Bf5 {[%clk 0:02:51.4]}
4. Nd4 {[%clk 0:02:58.2]} 4... Bg6 {[%clk 0:02:50.2]} 5. e6 {[%clk 0:02:56.8]}
5... fxe6 {[%clk 0:02:49.4]} 6. Nxe6 {[%clk 0:02:55.4]} 6... Qd6 {[%clk
0:02:48.6]} 7. Nxf8 {[%clk 0:02:54.2]} 7... Kxf8 {[%clk 0:02:48.3]} 8. d4 {[%clk
0:02:55.1]} 8... Nf6 {[%clk 0:02:48.2]} 9. Nd2 {[%clk 0:02:55]} 9... Nbd7 {[%clk
0:02:48.2]} 10. Nf3 {[%clk 0:02:52.5]} 10... Kf7 {[%clk 0:02:48]} 11. Be2 {[%clk
0:02:50.6]} 11... Rhe8 {[%clk 0:02:47.6]} 12. O-O {[%clk 0:02:49.3]} 12... e5
{[%clk 0:02:47.3]} 13. dxe5 {[%clk 0:02:48.1]} 13... Nxe5 {[%clk 0:02:48.2]} 14.
c3 {[%clk 0:02:45.3]} 14... Nxf3+ {[%clk 0:02:47.4]} 15. Bxf3 {[%clk 0:02:46.2]}
15... Be4 {[%clk 0:02:43.9]} 16. Bxe4 {[%clk 0:02:43.5]} 16... Rxe4 {[%clk
0:02:44.8]} 17. Be3 {[%clk 0:02:40.2]} 17... Rae8 {[%clk 0:02:43.2]} 18. h3
{[%clk 0:02:38.6]} 18... a6 {[%clk 0:02:41.9]} 19. Qb3 {[%clk 0:02:36.9]} 19...
Qc7 {[%clk 0:02:34.1]} 20. Rad1 {[%clk 0:02:36.6]} 20... Kg8 {[%clk 0:02:30.5]}
21. a4 {[%clk 0:02:35.4]} 21... c5 {[%clk 0:02:10.3]} 22. a5 {[%clk 0:02:19.8]}
22... Kh8 {[%clk 0:02:02]} 23. Rd2 {[%clk 0:02:15.9]} 23... h6 {[%clk
0:02:00.8]} 24. Rfd1 {[%clk 0:02:15.6]} 24... R8e7 {[%clk 0:02:00.2]} 25. Qa3
{[%clk 0:02:14]} 25... d4 {[%clk 0:01:54.2]} 26. cxd4 {[%clk 0:02:11.9]} 26...
cxd4 {[%clk 0:01:54.2]} 27. Rxd4 {[%clk 0:02:12.3]} 27... Rxd4 {[%clk 0:01:50]}
28. Rxd4 {[%clk 0:02:07.4]} 28... Re5 {[%clk 0:01:46.7]} 29. b4 {[%clk
0:02:02.7]} 29... Qe7 {[%clk 0:01:20.5]} 30. Qd3 {[%clk 0:01:59.3]} 30... Rb5
{[%clk 0:01:17.1]} 31. Rd8+ {[%clk 0:01:57]} 31... Ng8 {[%clk 0:01:15.1]} 32.
Bc5 {[%clk 0:01:52.9]} 32... Qf7 {[%clk 0:01:14.8]} 33. g3 {[%clk 0:01:39.6]}
33... Qa2 {[%clk 0:01:12.6]} 34. Qd4 {[%clk 0:01:37.2]} 34... Qb1+ {[%clk
0:01:02.8]} 35. Kh2 {[%clk 0:01:31.4]} 35... Kh7 {[%clk 0:01:01.5]} 36. Rd7
{[%clk 0:01:29.2]} 36... Qg6 {[%clk 0:01:00.6]} 37. Qd3 {[%clk 0:01:25.2]} 37...
Qxd3 {[%clk 0:00:57.3]} 38. Rxd3 {[%clk 0:01:26]} 38... Nf6 {[%clk 0:00:57.4]}
39. f3 {[%clk 0:01:26.5]} 39... Kg6 {[%clk 0:00:53.4]} 40. g4 {[%clk 0:01:26]}
40... Kf7 {[%clk 0:00:52.9]} 41. Kg3 {[%clk 0:01:24.7]} 41... Ke6 {[%clk
0:00:53.2]} 42. Re3+ {[%clk 0:01:23.8]} 42... Kd5 {[%clk 0:00:53.1]} 43. Re7
{[%clk 0:01:23.4]} 43... g6 {[%clk 0:00:51.8]} 44. h4 {[%clk 0:01:19.9]} 44...
h5 {[%clk 0:00:42.1]} 45. g5 {[%clk 0:01:18.5]} 45... Nd7 {[%clk 0:00:35.3]} 46.
Rxd7+ {[%clk 0:01:16.7]} 46... Ke6 {[%clk 0:00:36.2]} 47. Rd6+ {[%clk 0:01:16]}
47... Kf5 {[%clk 0:00:36.3]} 48. Bd4 {[%clk 0:01:12.9]} 1-0

[Event "*** Titled Tuesday Blitz"]
[Site "Chess.com"]
[Date "2020.05.12"]
[Round "3"]
[White "MariaFominykh"]
[Black "amaidel"]
[Result "1/2-1/2"]
[WhiteElo "2385"]
[BlackElo "2554"]
[TimeControl "180+1"]
[EndTime "10:28:04 PDT"]
[Termination "Game drawn by repetition"]

1. d4 {[%clk 0:03:00.9]} 1... f5 {[%clk 0:02:59.2]} 2. Bg5 {[%clk 0:02:59.2]}
2... Nf6 {[%clk 0:02:55.9]} 3. Bxf6 {[%clk 0:02:58.4]} 3... exf6 {[%clk
0:02:55.9]} 4. e3 {[%clk 0:02:58.3]} 4... d5 {[%clk 0:02:55.6]} 5. Bd3 {[%clk
0:02:57.6]} 5... g6 {[%clk 0:02:53.4]} 6. Nh3 {[%clk 0:02:52.2]} 6... Bd6 {[%clk
0:02:50.2]} 7. c4 {[%clk 0:02:47.2]} 7... Be6 {[%clk 0:02:47.7]} 8. Qb3 {[%clk
0:02:07.8]} 8... b6 {[%clk 0:02:43.9]} 9. Nc3 {[%clk 0:01:58.2]} 9... c6 {[%clk
0:02:20.6]} 10. cxd5 {[%clk 0:01:56.7]} 10... cxd5 {[%clk 0:02:20.6]} 11. Nb5
{[%clk 0:01:37.8]} 11... O-O {[%clk 0:02:16.5]} 12. Nxd6 {[%clk 0:01:35.4]}
12... Qxd6 {[%clk 0:02:16.2]} 13. Nf4 {[%clk 0:01:34.9]} 13... Bf7 {[%clk
0:02:15.9]} 14. O-O {[%clk 0:01:31.8]} 14... Nc6 {[%clk 0:02:15.5]} 15. Rac1
{[%clk 0:01:25.1]} 15... Rac8 {[%clk 0:02:14.6]} 16. Ba6 {[%clk 0:01:20.3]}
16... Rc7 {[%clk 0:02:10.5]} 17. Qc3 {[%clk 0:01:03]} 17... Rb8 {[%clk
0:01:52.5]} 18. a4 {[%clk 0:00:54.9]} 18... Kh8 {[%clk 0:01:40.5]} 19. b4 {[%clk
0:00:52.3]} 19... Rcc8 {[%clk 0:01:03.7]} 20. Bxc8 {[%clk 0:00:50.9]} 20... Rxc8
{[%clk 0:01:03.9]} 21. b5 {[%clk 0:00:50]} 21... Ne7 {[%clk 0:01:03.5]} 22. Qb2
{[%clk 0:00:42.7]} 22... Rd8 {[%clk 0:01:02.5]} 23. Rc2 {[%clk 0:00:39]} 23...
g5 {[%clk 0:01:02.3]} 24. Ne2 {[%clk 0:00:30.3]} 24... f4 {[%clk 0:01:01.8]} 25.
exf4 {[%clk 0:00:26.7]} 25... gxf4 {[%clk 0:01:01.7]} 26. Qb3 {[%clk 0:00:23.7]}
26... Bg6 {[%clk 0:01:00.1]} 27. Rc3 {[%clk 0:00:20.2]} 27... Be4 {[%clk
0:01:00]} 28. Rh3 {[%clk 0:00:19.2]} 28... f3 {[%clk 0:00:59]} 29. gxf3 {[%clk
0:00:17.6]} 29... Bf5 {[%clk 0:00:58]} 30. Rg3 {[%clk 0:00:16.9]} 30... Rc8
{[%clk 0:00:57.4]} 31. Rc1 {[%clk 0:00:15.8]} 31... Rxc1+ {[%clk 0:00:53]} 32.
Nxc1 {[%clk 0:00:15.6]} 32... Qc7 {[%clk 0:00:53.1]} 33. Ne2 {[%clk 0:00:14.7]}
33... Bg6 {[%clk 0:00:48.9]} 34. Qc3 {[%clk 0:00:14.4]} 34... Qd7 {[%clk
0:00:49]} 35. Qe3 {[%clk 0:00:13.9]} 35... Nf5 {[%clk 0:00:48.5]} 36. Qf4 {[%clk
0:00:14]} 36... Nxg3 {[%clk 0:00:48.4]} 37. Qxf6+ {[%clk 0:00:13.8]} 37... Kg8
{[%clk 0:00:47.5]} 38. Nxg3 {[%clk 0:00:12.8]} 38... Qe8 {[%clk 0:00:46.9]} 39.
Qe5 {[%clk 0:00:12.1]} 39... Qf7 {[%clk 0:00:46.9]} 40. Qb8+ {[%clk 0:00:10.2]}
40... Kg7 {[%clk 0:00:46]} 41. Qe5+ {[%clk 0:00:10.1]} 41... Kg8 {[%clk
0:00:46.5]} 42. Qb8+ {[%clk 0:00:09.6]} 42... Kg7 {[%clk 0:00:46.5]} 43. Qe5+
{[%clk 0:00:09.5]} 43... Kg8 {[%clk 0:00:47]} 1/2-1/2

[Event "*** Titled Tuesday Blitz"]
[Site "Chess.com"]
[Date "2020.05.12"]
[Round "3"]
[White "Poghosyan_Suren"]
[Black "snowlord"]
[Result "0-1"]
[WhiteElo "2492"]
[BlackElo "2764"]
[TimeControl "180+1"]
[EndTime "10:28:05 PDT"]
[Termination "snowlord won by resignation"]

1. Nf3 {[%clk 0:03:00.9]} 1... d5 {[%clk 0:02:56.5]} 2. c4 {[%clk 0:02:56.2]}
2... d4 {[%clk 0:02:56.3]} 3. e3 {[%clk 0:02:55.5]} 3... Nc6 {[%clk 0:02:56.4]}
4. d3 {[%clk 0:02:55.2]} 4... e5 {[%clk 0:02:54.6]} 5. exd4 {[%clk 0:02:52.8]}
5... Nxd4 {[%clk 0:02:51.2]} 6. Nxd4 {[%clk 0:02:48.2]} 6... Qxd4 {[%clk
0:02:49.9]} 7. Nc3 {[%clk 0:02:47.7]} 7... c6 {[%clk 0:02:49.6]} 8. Be3 {[%clk
0:02:47.2]} 8... Qd8 {[%clk 0:02:49.2]} 9. d4 {[%clk 0:02:47.3]} 9... exd4
{[%clk 0:02:49.3]} 10. Bxd4 {[%clk 0:02:43.5]} 10... Nh6 {[%clk 0:02:43.1]} 11.
Be2 {[%clk 0:02:14]} 11... Be6 {[%clk 0:02:12.5]} 12. O-O {[%clk 0:00:58.2]}
12... Nf5 {[%clk 0:02:11.9]} 13. Be5 {[%clk 0:00:51.2]} 13... Qa5 {[%clk
0:02:12]} 14. Bg3 {[%clk 0:00:43.9]} 14... Rd8 {[%clk 0:02:11.7]} 15. Qc1 {[%clk
0:00:42.6]} 15... Be7 {[%clk 0:01:47.5]} 16. a3 {[%clk 0:00:38.5]} 16... Nxg3
{[%clk 0:01:19.7]} 17. hxg3 {[%clk 0:00:39.4]} 17... O-O {[%clk 0:01:19.7]} 18.
Qe3 {[%clk 0:00:33.7]} 18... Bg5 {[%clk 0:00:59.4]} 19. f4 {[%clk 0:00:19.6]}
19... Bf6 {[%clk 0:00:59.1]} 20. Rfd1 {[%clk 0:00:18.8]} 20... Rfe8 {[%clk
0:00:33.8]} 21. Qf3 {[%clk 0:00:17.1]} 21... Qc5+ {[%clk 0:00:31.3]} 22. Kh2
{[%clk 0:00:16.3]} 22... Qb6 {[%clk 0:00:16.6]} 23. b4 {[%clk 0:00:14.3]} 23...
h5 {[%clk 0:00:14.8]} 24. c5 {[%clk 0:00:12.9]} 24... Qc7 {[%clk 0:00:15]} 25.
Rac1 {[%clk 0:00:10.3]} 25... Rxd1 {[%clk 0:00:12.8]} 26. Nxd1 {[%clk
0:00:07.9]} 26... Bg4 {[%clk 0:00:12.4]} 27. Qxg4 {[%clk 0:00:06.6]} 27... hxg4
{[%clk 0:00:12.2]} 28. Bxg4 {[%clk 0:00:07.5]} 28... g6 {[%clk 0:00:12.6]} 29.
Nf2 {[%clk 0:00:07]} 29... Kg7 {[%clk 0:00:12.8]} 30. Nd3 {[%clk 0:00:06.9]}
30... Qe7 {[%clk 0:00:12.8]} 31. Kg1 {[%clk 0:00:07.8]} 31... Qe3+ {[%clk
0:00:12.4]} 32. Nf2 {[%clk 0:00:08.4]} 32... Qxc1+ {[%clk 0:00:12.2]} 0-1

[Event "*** Titled Tuesday Blitz"]
[Site "Chess.com"]
[Date "2020.05.12"]
[Round "3"]
[White "FedaMaster"]
[Black "queen_iryna"]
[Result "1-0"]
[WhiteElo "2529"]
[BlackElo "2321"]
[TimeControl "180+1"]
[EndTime "10:28:05 PDT"]
[Termination "FedaMaster won by resignation"]

1. e4 {[%clk 0:03:00.9]} 1... d6 {[%clk 0:02:59.7]} 2. d4 {[%clk 0:03:00]} 2...
Nf6 {[%clk 0:02:59.8]} 3. Nc3 {[%clk 0:02:57.3]} 3... e5 {[%clk 0:02:59.1]} 4.
dxe5 {[%clk 0:02:55.4]} 4... dxe5 {[%clk 0:03:00]} 5. Qxd8+ {[%clk 0:02:50.4]}
5... Kxd8 {[%clk 0:03:00.9]} 6. f3 {[%clk 0:02:46.6]} 6... Be6 {[%clk
0:02:49.8]} 7. b3 {[%clk 0:02:24.4]} 7... Nc6 {[%clk 0:02:35.8]} 8. Bb2 {[%clk
0:02:24.1]} 8... Bc5 {[%clk 0:02:15.4]} 9. O-O-O+ {[%clk 0:02:23.4]} 9... Kc8
{[%clk 0:02:14.8]} 10. Nh3 {[%clk 0:02:04.8]} 10... a6 {[%clk 0:02:05.5]} 11.
Kb1 {[%clk 0:01:40.4]} 11... h6 {[%clk 0:02:04.5]} 12. Nd5 {[%clk 0:01:35.9]}
12... Rd8 {[%clk 0:01:25.6]} 13. Bc4 {[%clk 0:01:33.3]} 13... b5 {[%clk
0:01:13.6]} 14. Nxf6 {[%clk 0:01:29.1]} 14... bxc4 {[%clk 0:01:13.6]} 15. Nh5
{[%clk 0:01:26.8]} 15... g6 {[%clk 0:01:03.4]} 16. Nf6 {[%clk 0:01:14.8]} 16...
cxb3 {[%clk 0:01:01.4]} 17. axb3 {[%clk 0:01:13.8]} 17... Bd4 {[%clk 0:00:43]}
18. Ba3 {[%clk 0:00:31.5]} 18... a5 {[%clk 0:00:31]} 19. Ng4 {[%clk 0:00:30.9]}
19... h5 {[%clk 0:00:20]} 20. Ngf2 {[%clk 0:00:31.1]} 20... a4 {[%clk
0:00:19.6]} 21. b4 {[%clk 0:00:30.3]} 21... Rb8 {[%clk 0:00:18.4]} 22. Nd3
{[%clk 0:00:30.7]} 22... Bc4 {[%clk 0:00:16.7]} 23. Kc1 {[%clk 0:00:31.1]} 23...
Bxd3 {[%clk 0:00:16.7]} 24. Rxd3 {[%clk 0:00:30.8]} 24... Nxb4 {[%clk
0:00:16.9]} 25. Bxb4 {[%clk 0:00:28.3]} 25... Rxb4 {[%clk 0:00:17.8]} 26. Rhd1
{[%clk 0:00:27.4]} 26... Rc4 {[%clk 0:00:16.9]} 27. Kb1 {[%clk 0:00:26.8]} 27...
c6 {[%clk 0:00:16.8]} 28. f4 {[%clk 0:00:26.8]} 28... exf4 {[%clk 0:00:14.3]}
29. Nxf4 {[%clk 0:00:25]} 29... Bf6 {[%clk 0:00:14.4]} 30. Rxd8+ {[%clk
0:00:24.3]} 30... Bxd8 {[%clk 0:00:15.3]} 31. Nd3 {[%clk 0:00:23.3]} 31... Rxe4
{[%clk 0:00:15.1]} 32. Nc5 {[%clk 0:00:23.8]} 32... Rb4+ {[%clk 0:00:14.8]} 33.
Ka2 {[%clk 0:00:23.5]} 33... Be7 {[%clk 0:00:14.1]} 34. Nd3 {[%clk 0:00:22.4]}
34... Rc4 {[%clk 0:00:13.5]} 35. Kb1 {[%clk 0:00:20.7]} 35... a3 {[%clk
0:00:13.3]} 36. Re1 {[%clk 0:00:20.6]} 36... Kd7 {[%clk 0:00:12.5]} 37. Ne5+
{[%clk 0:00:20.2]} 1-0

[Event "*** Titled Tuesday Blitz"]
[Site "Chess.com"]
[Date "2020.05.12"]
[Round "3"]
[White "Kirill_Klukin"]
[Black "Aureliano-Buendia"]
[Result "1-0"]
[WhiteElo "2709"]
[BlackElo "2413"]
[TimeControl "180+1"]
[EndTime "10:28:06 PDT"]
[Termination "Kirill_Klukin won by resignation"]

1. d4 {[%clk 0:03:00.9]} 1... d5 {[%clk 0:02:55.7]} 2. Nf3 {[%clk 0:03:00.4]}
2... Nf6 {[%clk 0:02:55]} 3. c4 {[%clk 0:03:00.6]} 3... c6 {[%clk 0:02:54.9]} 4.
Nbd2 {[%clk 0:02:59.5]} 4... a6 {[%clk 0:02:52.2]} 5. e3 {[%clk 0:02:59.3]} 5...
b5 {[%clk 0:02:51.1]} 6. b3 {[%clk 0:02:59.6]} 6... Bg4 {[%clk 0:02:49.9]} 7.
Bd3 {[%clk 0:02:59.4]} 7... e6 {[%clk 0:02:49.4]} 8. Bb2 {[%clk 0:02:59.7]} 8...
Nbd7 {[%clk 0:02:45.8]} 9. Qc2 {[%clk 0:02:59.9]} 9... Bd6 {[%clk 0:02:41.8]}
10. Ne5 {[%clk 0:02:57.2]} 10... Rc8 {[%clk 0:02:12.2]} 11. f4 {[%clk
0:02:51.2]} 11... g6 {[%clk 0:02:04.6]} 12. c5 {[%clk 0:02:30]} 12... Be7 {[%clk
0:01:57.4]} 13. h3 {[%clk 0:02:20.9]} 13... Bf5 {[%clk 0:01:56.1]} 14. g4 {[%clk
0:02:20.9]} 14... Bxd3 {[%clk 0:01:54.2]} 15. Qxd3 {[%clk 0:02:21.8]} 15... O-O
{[%clk 0:01:30.7]} 16. a4 {[%clk 0:02:18.7]} 16... Nxe5 {[%clk 0:01:28]} 17.
fxe5 {[%clk 0:02:18.6]} 17... Nd7 {[%clk 0:01:17.6]} 18. O-O {[%clk 0:02:15.3]}
18... f6 {[%clk 0:01:12]} 19. exf6 {[%clk 0:02:13]} 19... Bxf6 {[%clk
0:01:11.5]} 20. e4 {[%clk 0:02:13]} 20... Bg7 {[%clk 0:01:09.4]} 21. e5 {[%clk
0:02:11.4]} 21... Rxf1+ {[%clk 0:00:59.8]} 22. Qxf1 {[%clk 0:02:08.4]} 22... Qg5
{[%clk 0:00:58.7]} 23. Nf3 {[%clk 0:02:02.2]} 23... Qe3+ {[%clk 0:00:57.9]} 24.
Qf2 {[%clk 0:02:01.2]} 24... Qxb3 {[%clk 0:00:57.5]} 25. axb5 {[%clk 0:01:59.6]}
25... axb5 {[%clk 0:00:54.3]} 26. Ra7 {[%clk 0:01:58.9]} 26... Rf8 {[%clk
0:00:53.2]} 27. Kg2 {[%clk 0:01:48.5]} 27... Rf7 {[%clk 0:00:43.5]} 28. Bc1
{[%clk 0:01:44.2]} 28... Nf8 {[%clk 0:00:29.2]} 29. Rxf7 {[%clk 0:01:38.9]}
29... Kxf7 {[%clk 0:00:29.3]} 30. Ng5+ {[%clk 0:01:39.6]} 30... Kg8 {[%clk
0:00:29.2]} 31. Be3 {[%clk 0:00:57.9]} 31... h6 {[%clk 0:00:28.2]} 32. Nf7
{[%clk 0:00:46.4]} 32... Qd3 {[%clk 0:00:25]} 33. Bxh6 {[%clk 0:00:39.8]} 33...
Qe4+ {[%clk 0:00:23.9]} 34. Kg3 {[%clk 0:00:39.5]} 34... Bxh6 {[%clk 0:00:20]}
35. Nxh6+ {[%clk 0:00:39.3]} 35... Kg7 {[%clk 0:00:20.6]} 36. g5 {[%clk
0:00:33.5]} 1-0

[Event "*** Titled Tuesday Blitz"]
[Site "Chess.com"]
[Date "2020.05.12"]
[Round "3"]
[White "GreatOwl02"]
[Black "NotFischer"]
[Result "1-0"]
[WhiteElo "2336"]
[BlackElo "2099"]
[TimeControl "180+1"]
[EndTime "10:28:07 PDT"]
[Termination "GreatOwl02 won by resignation"]

1. d4 {[%clk 0:03:00.9]} 1... Nf6 {[%clk 0:02:59.4]} 2. c4 {[%clk 0:03:00.8]}
2... e6 {[%clk 0:02:59.3]} 3. Nf3 {[%clk 0:03:00.2]} 3... d5 {[%clk 0:02:59.7]}
4. Nc3 {[%clk 0:02:59.6]} 4... Be7 {[%clk 0:02:59.1]} 5. Bf4 {[%clk 0:02:58.6]}
5... O-O {[%clk 0:02:56.8]} 6. e3 {[%clk 0:02:58.1]} 6... c6 {[%clk 0:02:54.1]}
7. Bd3 {[%clk 0:02:46.8]} 7... Nbd7 {[%clk 0:02:50.7]} 8. O-O {[%clk 0:02:46]}
8... dxc4 {[%clk 0:02:47.8]} 9. Bxc4 {[%clk 0:02:45.3]} 9... Nh5 {[%clk
0:02:35.8]} 10. Qe2 {[%clk 0:02:07.5]} 10... Nxf4 {[%clk 0:02:33]} 11. exf4
{[%clk 0:02:07.7]} 11... Qc7 {[%clk 0:02:23.7]} 12. f5 {[%clk 0:02:05.8]} 12...
Nb6 {[%clk 0:02:15]} 13. fxe6 {[%clk 0:02:01.6]} 13... Nxc4 {[%clk 0:02:02.6]}
14. exf7+ {[%clk 0:02:01.2]} 14... Rxf7 {[%clk 0:02:03.4]} 15. Qxc4 {[%clk
0:02:00.7]} 15... Bf6 {[%clk 0:01:35.2]} 16. Rfe1 {[%clk 0:01:56.9]} 16... Bg4
{[%clk 0:01:17.9]} 17. Ne5 {[%clk 0:01:55.4]} 17... Bxe5 {[%clk 0:01:17.1]} 18.
dxe5 {[%clk 0:01:55.4]} 18... Bh5 {[%clk 0:01:01.6]} 19. Rac1 {[%clk 0:01:33.7]}
19... Qb6 {[%clk 0:00:52.9]} 20. Rc2 {[%clk 0:01:25.4]} 20... Rf8 {[%clk
0:00:45.9]} 21. Ne4 {[%clk 0:01:16.7]} 21... Kh8 {[%clk 0:00:39.3]} 22. Qc5
{[%clk 0:00:38.7]} 22... Bg6 {[%clk 0:00:19.9]} 23. Qxb6 {[%clk 0:00:35.4]}
23... axb6 {[%clk 0:00:20.8]} 24. Rd2 {[%clk 0:00:34.7]} 24... Re7 {[%clk
0:00:15.6]} 25. Nd6 {[%clk 0:00:30.6]} 25... h6 {[%clk 0:00:14.6]} 26. g3 {[%clk
0:00:29.8]} 26... Ra8 {[%clk 0:00:14.1]} 27. a3 {[%clk 0:00:27.4]} 27... Ra5
{[%clk 0:00:14.6]} 28. f4 {[%clk 0:00:26.9]} 28... Kh7 {[%clk 0:00:10.2]} 29.
Nc8 {[%clk 0:00:27]} 29... Re8 {[%clk 0:00:08.5]} 30. Nxb6 {[%clk 0:00:27.2]}
30... Rb5 {[%clk 0:00:05.8]} 31. Nc4 {[%clk 0:00:27.5]} 31... Bf7 {[%clk
0:00:05.1]} 32. Nd6 {[%clk 0:00:27.6]} 32... Rb3 {[%clk 0:00:03.7]} 33. Nxe8
{[%clk 0:00:27.5]} 33... Bxe8 {[%clk 0:00:04.6]} 34. Kf2 {[%clk 0:00:27.2]}
34... c5 {[%clk 0:00:04.1]} 35. Re3 {[%clk 0:00:27.7]} 35... Rb6 {[%clk
0:00:02.6]} 36. Rc3 {[%clk 0:00:26.7]} 36... Bc6 {[%clk 0:00:03.5]} 37. Rxc5
{[%clk 0:00:26.2]} 1-0